lending/lending_fUSD_20250917
["ID","MTS","AMOUNT","RATE_DAILY","PERIOD"]
[385875249,1758081045466,-151.0,0.000248,7]
[385875251,1758081045475,-151.0,0.000248,7]
[385875253,1758081045484,-196.94905,0.000248,7]
[385875255,1758081045493,-159.720124,0.000248,7]
[385875257,1758081045502,-299.776789,0.000248,7]
[385875259,1758081045511,-151.0,0.000248,7]
[385875261,1758081045520,-160.536044,0.000248,7]
[385875263,1758081045529,-152.947816,0.000248,7]
[385875265,1758081045538,-151.0,0.000248,7]
[385875267,1758081045548,-151.0,0.000248,7]
[385875269,1758081045557,-151.0,0.000248,7]
[385875271,1758081045567,-151.0,0.000248,7]
[385875273,1758081045576,-151.0,0.000248,7]
[385875274,1758081045586,-237.375791,0.000248,7]
[385875275,1758081045595,-151.0,0.000248,7]
[385875276,1758081045605,-153.307572,0.000248,7]
[385875277,1758081045615,-151.0,0.000248,7]
[385875278,1758081045624,-155.888239,0.000248,7]
[385875279,1758081045634,-160.246074,0.000248,7]
[385875280,1758081045644,-213.18994792,0.000248,3]
[385875281,1758081045653,-213.18994792,0.000248,7]
[385875282,1758081045663,-151.0,0.000248,7]
[385875283,1758081045672,-153.347278,0.000248,7]
[385875284,1758081045682,-243.016479,0.000248,7]
[385875285,1758081045691,-243.016479,0.000248,7]
[385875286,1758081045701,-243.016479,0.000248,7]
[385875287,1758081045711,-395.757704,0.000248,7]
[385875288,1758081045721,-243.016479,0.000248,7]
[385875289,1758081045731,-395.757704,0.000248,7]
[385875290,1758081045740,-395.757704,0.000248,7]
[385875291,1758081045750,-395.757704,0.000248,7]
[385875292,1758081045759,-1000.0,0.000248,9]
[385875293,1758081045769,-1180.46664601,0.000248,2]
[385875294,1758081045778,-151.0,0.000248,7]
[385875295,1758081045787,-151.0,0.000248,7]
[385875296,1758081045798,-151.0,0.000248,7]
[385875297,1758081045807,-156.982694,0.000248,7]
[385875298,1758081045817,-156.705204,0.000248,7]
[385875299,1758081045826,-151.0,0.000248,7]
[385875300,1758081045836,-151.0,0.000248,7]
[385875301,1758081045845,-151.0,0.000248,7]
[385875302,1758081045856,-151.0,0.000248,7]
[385875303,1758081045865,-151.0,0.000248,7]
[385875304,1758081045874,-359.421162,0.000248,7]
[385875305,1758081045888,-160.0,0.000248,3]
[385875306,1758081045897,-151.0,0.000248,7]
[385875307,1758081045907,-359.421162,0.000248,7]
[385875308,1758081045916,-318.143665,0.000248,7]
[385875310,1758081045926,-975.939386,0.000248,7]
[385875311,1758081045935,-359.421162,0.000248,7]
[385875312,1758081045944,-151.0,0.000248,7]
[385875313,1758081045953,-318.143665,0.000248,7]
[385875314,1758081045963,-359.421162,0.000248,7]
[385875315,1758081045973,-975.939386,0.000248,7]
[385875316,1758081045983,-168.190578,0.000248,7]
[385875317,1758081045992,-318.143665,0.000248,7]
[385875318,1758081046002,-975.939386,0.000248,7]
[385875319,1758081046011,-151.0,0.000248,7]
[385875320,1758081046020,-151.0,0.000248,7]
[385875321,1758081046030,-975.939386,0.000248,7]
[385875322,1758081046039,-151.0,0.000248,7]
[385875323,1758081046050,-151.0,0.000248,7]
[385875324,1758081046059,-151.0,0.000248,7]
[385875326,1758081046068,-151.0,0.000248,7]
[385875328,1758081046078,-153.887997,0.000248,7]
[385875330,1758081046088,-169.980899,0.000248,7]
[385875331,1758081046099,-151.0,0.000248,7]
[385875334,1758081046112,-151.0,0.000248,7]
[385875336,1758081046121,-151.0,0.000248,7]
[385875338,1758081046131,-254.884899,0.000248,7]
[385875340,1758081046140,-254.884899,0.000248,7]
[385875342,1758081046150,-254.884899,0.000248,7]
[385875344,1758081046159,-254.884899,0.000248,7]
[385875346,1758081046169,-151.0,0.000248,7]
[385875348,1758081046179,-494.38221126,0.000248,2]
[385875350,1758081046188,-500.0,0.00024808,2]
[385875352,1758081046197,-500.0,0.00024808,2]
[385875354,1758081046207,-3394.19060861,0.00024808,2]
[385875356,1758081046216,-582.06,0.00024811,2]
[385875358,1758081046227,-301.68280982,0.00024821,2]
[385875360,1758081046236,-1000.0,0.00024821,2]
[385875362,1758081046246,-1000.0,0.00024821,2]
[385875364,1758081046255,-566.56020778,0.00024873,2]
[385875366,1758081046264,-159.85260474,0.00024873,2]
[385875368,1758081046274,-500.0,0.00024873,2]
[385875370,1758081046283,-500.0,0.00024873,2]
[385875372,1758081046293,-504.77559094,0.00024873,2]
[385875374,1758081046303,-160.77690757,0.00024873,2]
[385875376,1758081046313,-150.0,0.00024873,2]
[385875378,1758081046322,-150.0,0.00024876,2]
[385875380,1758081046332,-150.29,0.00024899,2]
[385875382,1758081046341,-152.86,0.000249,2]
[385875384,1758081046352,-158.535772,0.000249,7]
[385875386,1758081046362,-151.0,0.000249,7]
[385875388,1758081046372,-151.0,0.000249,7]
[385875390,1758081046382,-151.0,0.000249,7]
[385875392,1758081046392,-151.0,0.000249,7]
[385875394,1758081046401,-164.497592,0.000249,7]
[385875396,1758081046411,-243.016479,0.000249,7]
[385875398,1758081046420,-243.016479,0.000249,7]
[385875400,1758081046431,-243.016479,0.000249,7]
[385875402,1758081046441,-395.757704,0.000249,7]
[385875404,1758081046450,-243.016479,0.000249,7]
[385875406,1758081046459,-395.757704,0.000249,7]
[385875408,1758081046469,-395.757704,0.000249,7]
[385875410,1758081046478,-395.757704,0.000249,7]
[385875412,1758081046487,-1600.0,0.000249,9]
[385875414,1758081046496,-151.0,0.000249,7]
[385875416,1758081046506,-151.0,0.000249,7]
[385875418,1758081046516,-175.021681,0.000249,7]
[385875420,1758081046525,-485089.101032,0.000249,3]
[385875422,1758081046535,-151.0,0.000249,7]
[385875424,1758081046544,-151.0,0.000249,7]
[385875426,1758081046554,-151.0,0.000249,7]
[385875428,1758081046563,-234.303678,0.000249,7]
[385875430,1758081046573,-359.421162,0.000249,7]
[385875432,1758081046584,-151.0,0.000249,7]
[385875435,1758081046593,-359.421162,0.000249,7]
[385875437,1758081046603,-318.143665,0.000249,7]
[385875439,1758081046613,-359.421162,0.000249,7]
[385875441,1758081046623,-975.939386,0.000249,7]
[385875443,1758081046632,-151.0,0.000249,7]
[385875445,1758081046641,-318.143665,0.000249,7]
[385875447,1758081046650,-359.421162,0.000249,7]
[385875449,1758081046660,-975.939386,0.000249,7]
[385875451,1758081046669,-318.143665,0.000249,7]
[385875453,1758081046678,-975.939386,0.000249,7]
[385875455,1758081046688,-318.143665,0.000249,7]
[385875457,1758081046697,-151.0,0.000249,7]
[385875459,1758081046706,-159.748675,0.000249,7]
[385875461,1758081046715,-975.939386,0.000249,7]
[385875463,1758081046724,-151.0,0.000249,7]
[385875465,1758081046734,-153.871247,0.000249,7]
[385875467,1758081046743,-151.0,0.000249,7]
[385875469,1758081046752,-151.0,0.000249,7]
[385875471,1758081046761,-166.891424,0.000249,7]
[385875473,1758081046770,-151.0,0.000249,7]
[385875475,1758081046779,-151.0,0.000249,7]
[385875477,1758081046788,-254.884899,0.000249,7]
[385875479,1758081046801,-275.236472,0.000249,7]
[385875481,1758081046811,-254.884899,0.000249,7]
[385875483,1758081046820,-254.884899,0.000249,7]
[385875485,1758081046829,-151.0,0.000249,7]
[385875487,1758081046838,-151.0,0.000249,7]
[385875489,1758081046847,-254.884899,0.000249,7]
[385875491,1758081046856,-151.0,0.000249,7]
[385875493,1758081046866,-151.0,0.000249,7]
[385875495,1758081046875,-151.0,0.000249,7]
[385875497,1758081046889,-151.0,0.000249,7]
[385875499,1758081046898,-154.381254,0.000249,7]
[385875501,1758081046907,-13602.84713558,0.000249,2]
[385875503,1758081046916,-151.0,0.000249,7]
[385875505,1758081046927,-151.0,0.000249,7]
[385875507,1758081046936,-151.0,0.000249,7]
[385875509,1758081046945,-516.07479255,0.000249,3]
[385875511,1758081046955,-151.0,0.000249,7]
[385875513,1758081046964,-151.0,0.000249,7]
[385875515,1758081046973,-151.0,0.000249,7]
[385875517,1758081046982,-151.0,0.000249,7]
[385875518,1758081046993,-151.0,0.000249,7]
[385875519,1758081047001,-151.0,0.000249,7]
[385875520,1758081047010,-151.0,0.000249,7]
[385875521,1758081047019,-160.0,0.000249,3]
[385875522,1758081047028,-151.0,0.000249,7]
[385875523,1758081047037,-151.0,0.000249,7]
[385875524,1758081047047,-151.0,0.000249,7]
[385875525,1758081047056,-151.0,0.000249,7]
[385875526,1758081047065,-160.0,0.000249,3]
[385875527,1758081047074,-151.0,0.000249,7]
[385875528,1758081047083,-218.649692,0.000249,7]
[385875529,1758081047092,-218.649692,0.000249,7]
[385875530,1758081047102,-218.649692,0.000249,7]
[385875532,1758081047111,-151.0,0.000249,7]
[385875534,1758081047120,-218.649692,0.000249,7]
[385875536,1758081047130,-151.0,0.000249,7]
[385875538,1758081047141,-500.0,0.00024932,2]
[385875540,1758081047150,-500.0,0.00024973,2]
[385875543,1758081047160,-200.94650692,0.00024973,2]
[385875545,1758081047169,-500.0,0.00024973,2]
[385875547,1758081047179,-365.29394183,0.00024973,2]
[385875549,1758081047189,-500.0,0.00024973,2]
[385875551,1758081047198,-500.0,0.00024973,2]
[385875553,1758081047208,-257.85532834,0.00024973,2]
[385875555,1758081047218,-500.0,0.00024973,2]
[385875557,1758081047227,-500.0,0.00024973,2]
[385875559,1758081047237,-150.0,0.00024973,2]
[385875561,1758081047246,-150.0,0.00024973,2]
[385875563,1758081047256,-154.33237641,0.00024973,2]
[385875565,1758081047266,-500.0,0.00024973,2]
[385875567,1758081047275,-500.0,0.00024975,2]
[385875569,1758081047284,-500.0,0.00024975,2]
[385875571,1758081047295,-823.25,0.00024986,2]
[385875573,1758081047304,-905.36,0.00024986,2]
[385875575,1758081047314,-155.134556,0.0002499,7]
[385875577,1758081047324,-151.0,0.0002499,7]
[385875579,1758081047333,-154.849556,0.0002499,7]
[385875582,1758081047344,-151.0,0.0002499,7]
[385875584,1758081047354,-151.0,0.0002499,7]
[385875586,1758081047363,-151.0,0.0002499,7]
[385875588,1758081047372,-151.0,0.0002499,7]
[385875590,1758081047382,-151.0,0.0002499,7]
[385875592,1758081047391,-151.0,0.0002499,7]
[385875594,1758081047400,-151.0,0.0002499,7]
[385875596,1758081047409,-151.0,0.0002499,7]
[385875598,1758081047418,-151.0,0.0002499,7]
[385875600,1758081047428,-2703.36855836,0.00025,3]
[385875602,1758081047437,-356.14219974,0.00025,2]
[385875611,1758081047510,-360.0,0.00025,2]
[385875613,1758081047519,-2986.83115803,0.00025,2]
[385875615,1758081047528,-3173.6837671,0.00025,2]
[385875617,1758081047537,-15054.18782987,0.00025,2]
[385875619,1758081047547,-1044.34730118,0.00025,2]
[385875621,1758081047556,-164.14717889,0.00025,2]
[385875623,1758081047565,-3253.11667013,0.00025,2]
[385875625,1758081047574,-6590.19775615,0.00025,2]
[385875627,1758081047583,-152.957816,0.00025,7]
[385875629,1758081047592,-152.611812,0.00025,7]
[385875631,1758081047601,-151.0,0.00025,7]
[385875633,1758081047610,-152.402784,0.00025,7]
[385875635,1758081047620,-151.195369,0.00025,7]
[385875637,1758081047629,-7000.0,0.00025,2]
[385875639,1758081047638,-15000.0,0.0002501,2]
[385875641,1758081047648,-500.0,0.00025012,2]
[385875643,1758081047657,-756.0,0.0002504,2]
[385875645,1758081047667,-899.0,0.0002504,2]
[385875647,1758081047676,-500.0,0.0002504,2]
[385875649,1758081047685,-500.0,0.0002504,2]
[385875651,1758081047694,-500.0,0.0002504,2]
[385875653,1758081047703,-500.0,0.0002504,2]
[385875656,1758081047713,-862.0,0.0002504,2]
[385875658,1758081047723,-500.0,0.0002504,2]
[385875660,1758081047732,-500.0,0.0002504,2]
[385875662,1758081047742,-500.0,0.00025048,2]
[385875664,1758081047751,-500.0,0.00025073,2]
[385875666,1758081047762,-165.13734492,0.00025073,2]
[385875668,1758081047771,-500.0,0.00025073,2]
[385875670,1758081047780,-500.0,0.00025073,2]
[385875672,1758081047791,-500.0,0.00025073,2]
[385875673,1758081047804,-500.61762801,0.00025073,2]
[385875675,1758081047813,-500.54332424,0.00025073,2]
[385875677,1758081047822,-500.0,0.00025082,2]
[385875680,1758081047833,-500.0,0.00025097,5]
[385875682,1758081047843,-105395.75237668,0.000251,2]
[385875684,1758081047858,-151.0,0.000251,7]
[385875686,1758081047867,-151.0,0.000251,7]
[385875688,1758081047877,-151.0,0.000251,7]
[385875690,1758081047891,-2000.0,0.00025116,2]
[385875692,1758081047900,-2000.0,0.00025116,2]
[385875694,1758081047909,-1881.6676272,0.00025116,2]
[385875696,1758081047919,-2000.0,0.00025116,2]
[385875698,1758081047929,-1258.03041969,0.00025116,2]
[385875700,1758081047938,-1526.42837724,0.00025116,2]
[385875702,1758081047947,-2000.0,0.00025116,2]
[385875704,1758081047957,-2000.0,0.00025116,2]
[385875706,1758081047968,-2000.0,0.00025116,2]
[385875708,1758081047977,-839.10906599,0.00025116,2]
[385875710,1758081047987,-2000.0,0.00025116,2]
[385875712,1758081047996,-2000.0,0.00025116,2]
[385875714,1758081048006,-1774.13036564,0.00025116,2]
[385875716,1758081048015,-300.0,0.00025133,2]
[385875718,1758081048030,-150.0,0.0002515,2]
[385875720,1758081048039,-467.69178106,0.00025168,2]
[385875722,1758081048048,-500.0,0.00025206,2]
[385875724,1758081048057,-156.33907,0.0002521,7]
[385875726,1758081048067,-151.0,0.0002521,7]
[385875728,1758081048075,-151.0,0.0002521,7]
[385875730,1758081048085,-151.0,0.0002521,7]
[385875732,1758081048094,-176.868809,0.0002521,7]
[385875734,1758081048104,-151.0,0.0002521,7]
[385875736,1758081048114,-151.0,0.0002521,7]
[385875738,1758081048124,-151.0,0.0002521,7]
[385875740,1758081048134,-151.0,0.0002521,7]
[385875742,1758081048143,-500.0,0.00025247,2]
[385875744,1758081048152,-500.0,0.00025247,2]
[385875746,1758081048162,-500.0,0.00025247,2]
[385875748,1758081048171,-500.0,0.00025247,2]
[385875750,1758081048180,-500.0,0.00025247,2]
[385875752,1758081048189,-500.0,0.00025247,2]
[385875754,1758081048198,-150.0,0.00025247,2]
[385875756,1758081048207,-219.2703696,0.00025247,2]
[385875758,1758081048216,-500.0,0.00025247,2]
[385875760,1758081048225,-151.0,0.00025247,7]
[385875762,1758081048234,-151.0,0.00025247,7]
[385875764,1758081048244,-151.0,0.00025247,7]
[385875766,1758081048253,-151.0,0.00025247,7]
[385875768,1758081048262,-500.0,0.00025249,2]
[385875770,1758081048271,-500.0,0.00025249,2]
[385875772,1758081048280,-13912.10349741,0.00025268,2]
[385875774,1758081048290,-500.0,0.00025286,2]
[385875776,1758081048299,-756.0,0.00025314,2]
[385875778,1758081048308,-899.0,0.00025314,2]
[385875780,1758081048317,-500.0,0.00025314,2]
[385875782,1758081048326,-500.0,0.00025314,2]
[385875784,1758081048336,-500.0,0.00025314,2]
[385875786,1758081048345,-500.0,0.00025314,2]
[385875788,1758081048354,-862.0,0.00025314,2]
[385875790,1758081048364,-256.54863331,0.00025314,2]
[385875792,1758081048373,-500.0,0.00025314,2]
[385875794,1758081048382,-504.80495171,0.00025321,2]
[385875796,1758081048391,-500.0,0.00025322,2]
[385875798,1758081048401,-500.0,0.00025356,2]
[385875800,1758081048409,-1500.0,0.00025368,2]
[385875802,1758081048419,-433.64673218,0.00025368,2]
[385875804,1758081048428,-600.0,0.0002539,2]
[385875806,1758081048438,-1000.0,0.00025421,2]
[385875808,1758081048447,-1000.0,0.00025421,2]
[385875810,1758081048456,-250.0,0.00025421,2]
[385875812,1758081048465,-150.0,0.00025424,2]
[385875814,1758081048474,-243.016479,0.00025424,7]
[385875816,1758081048483,-243.016479,0.00025424,7]
[385875818,1758081048491,-243.016479,0.00025424,7]
[385875820,1758081048500,-395.757704,0.00025424,7]
[385875822,1758081048509,-243.016479,0.00025424,7]
[385875824,1758081048518,-395.757704,0.00025424,7]
[385875826,1758081048528,-395.757704,0.00025424,7]
[385875827,1758081048542,-395.757704,0.00025424,7]
[385875830,1758081048551,-151.0,0.00025424,7]
[385875831,1758081048560,-151.0,0.00025424,7]
[385875833,1758081048569,-221.134708,0.00025424,7]
[385875835,1758081048578,-151.0,0.00025424,7]
[385875837,1758081048588,-151.0,0.00025424,7]
[385875839,1758081048597,-359.421162,0.00025424,7]
[385875841,1758081048607,-151.0,0.00025424,7]
[385875843,1758081048616,-359.421162,0.00025424,7]
[385875845,1758081048626,-318.143665,0.00025424,7]
[385875847,1758081048635,-359.421162,0.00025424,7]
[385875849,1758081048644,-975.939386,0.00025424,7]
[385875851,1758081048653,-318.143665,0.00025424,7]
[385875854,1758081048663,-359.421162,0.00025424,7]
[385875856,1758081048672,-975.939386,0.00025424,7]
[385875858,1758081048682,-318.143665,0.00025424,7]
[385875860,1758081048692,-151.0,0.00025424,7]
[385875861,1758081048702,-975.939386,0.00025424,7]
[385875863,1758081048711,-318.143665,0.00025424,7]
[385875865,1758081048720,-151.0,0.00025424,7]
[385875867,1758081048729,-975.939386,0.00025424,7]
[385875869,1758081048739,-151.0,0.00025424,7]
[385875871,1758081048748,-162.772322,0.00025424,7]
[385875873,1758081048757,-151.0,0.00025424,7]
[385875876,1758081048767,-254.884899,0.00025424,7]
[385875878,1758081048776,-254.884899,0.00025424,7]
[385875880,1758081048785,-254.884899,0.00025424,7]
[385875881,1758081048794,-254.884899,0.00025424,7]
[385875883,1758081048804,-151.0,0.00025424,7]
[385875885,1758081048813,-500.0,0.0002548,2]
[385875888,1758081048823,-500.0,0.00025521,2]
[385875889,1758081048832,-500.0,0.00025521,2]
[385875892,1758081048842,-500.0,0.00025521,2]
[385875894,1758081048851,-500.0,0.00025521,2]
[385875895,1758081048861,-500.0,0.00025521,2]
[385875897,1758081048871,-422.38326135,0.00025521,2]
[385875899,1758081048883,-165.87812312,0.00025521,2]
[385875901,1758081048893,-500.0,0.00025521,2]
[385875903,1758081048902,-500.0,0.00025523,2]
[385875905,1758081048911,-500.0,0.00025523,2]
[385875907,1758081048921,-2606.39,0.00025547,2]
[385875909,1758081048930,-500.0,0.0002556,2]
[385875911,1758081048940,-158.641737,0.00025586,7]
[385875914,1758081048949,-756.0,0.00025588,2]
[385875915,1758081048959,-899.0,0.00025588,2]
[385875917,1758081048968,-453.27485573,0.00025588,2]
[385875919,1758081048977,-500.0,0.00025588,2]
[385875921,1758081048986,-500.0,0.00025588,2]
[385875923,1758081048995,-500.0,0.00025588,2]
[385875925,1758081049004,-862.0,0.00025588,2]
[385875927,1758081049014,-500.0,0.00025588,2]
[385875929,1758081049023,-500.0,0.00025596,2]
[385875931,1758081049032,-388.04,0.00025603,2]
[385875933,1758081049041,-1011.72528243,0.00025621,2]
[385875935,1758081049052,-1003.32700358,0.00025621,2]
[385875937,1758081049062,-1000.0,0.00025621,2]
[385875939,1758081049071,-1000.0,0.00025621,2]
[385875941,1758081049080,-500.0,0.0002563,2]
[385875943,1758081049090,-500.0,0.00025645,5]
[385875945,1758081049099,-2500.0,0.00025664,2]
[385875947,1758081049108,-170.80890793,0.00025664,2]
[385875949,1758081049118,-1393.57098146,0.00025664,2]
[385875951,1758081049127,-309.93497039,0.00025664,2]
[385875953,1758081049137,-2500.0,0.00025664,2]
[385875955,1758081049147,-2500.0,0.00025664,2]
[385875957,1758081049156,-2497.71721571,0.00025664,2]
[385875959,1758081049166,-2586.36588455,0.00025664,2]
[385875961,1758081049176,-150.0,0.00025698,2]
[385875963,1758081049185,-388.04,0.00025726,2]
[385875965,1758081049195,-444.43504837,0.00025754,2]
[385875967,1758081049208,-22262.86328897,0.00025759,2]
[385875969,1758081049224,-500.0,0.00025795,2]
[385875971,1758081049233,-500.0,0.00025795,2]
[385875973,1758081049242,-500.0,0.00025795,2]
[385875975,1758081049252,-500.0,0.00025795,2]
[385875977,1758081049262,-500.0,0.00025795,2]
[385875979,1758081049271,-500.0,0.00025795,2]
[385875981,1758081049280,-500.0,0.00025797,2]
[385875983,1758081049290,-295.17023557,0.00025797,2]
[385875985,1758081049299,-500.0,0.00025834,2]
[385875987,1758081049308,-756.0,0.00025862,2]
[385875989,1758081049317,-899.0,0.00025862,2]
[385875991,1758081049326,-500.0,0.00025862,2]
[385875993,1758081049336,-467.45800752,0.00025862,2]
[385875995,1758081049345,-459.32860678,0.00025862,2]
[385875997,1758081049354,-862.0,0.00025862,2]
[385875999,1758081049364,-500.0,0.00025862,2]
[385876001,1758081049373,-500.0,0.0002587,2]
[385876003,1758081049383,-500.0,0.00025904,2]
[385876005,1758081049392,-744.11491759,0.00025916,2]
[385876007,1758081049401,-156.28,0.00025929,2]
[385876009,1758081049410,-1500.0,0.00025968,2]
[385876011,1758081049420,-1025.92813118,0.00025968,2]
[385876013,1758081049430,-350.0,0.00025968,2]
[385876015,1758081049439,-150.0,0.00025972,2]
[385876018,1758081049449,-151.0,0.00025972,7]
[385876019,1758081049458,-258.00073,0.00025972,7]
[385876022,1758081049468,-151.0,0.00025972,7]
[385876023,1758081049477,-151.0,0.00025972,7]
[385876025,1758081049486,-151.0,0.00025972,7]
[385876027,1758081049495,-151.0,0.00025972,7]
[385876029,1758081049504,-151.0,0.00025972,7]
[385876031,1758081049514,-151.0,0.00025972,7]
[385876033,1758081049523,-151.0,0.00025972,7]
[385876035,1758081049533,-151.0,0.00025972,7]
[385876037,1758081049542,-151.0,0.00025972,7]
[385876039,1758081049551,-151.0,0.00025972,7]
[385876041,1758081049560,-287.854402,0.00025972,7]
[385876043,1758081049570,-160.350345,0.00025972,7]
[385876045,1758081049579,-151.0,0.00025972,7]
[385876047,1758081049588,-151.0,0.00025972,7]
[385876049,1758081049597,-151.0,0.00025972,7]
[385876051,1758081049608,-221.865103,0.00025972,7]
[385876053,1758081049618,-151.0,0.00025972,7]
[385876055,1758081049628,-589.4894849,0.0002599,2]
[385876057,1758081049637,-3368.42977314,0.00026,2]
[385876059,1758081049646,-15723.83474168,0.00026,7]
[385876061,1758081049655,-2013.94428387,0.00026,2]
[385876063,1758081049665,-166.37571382,0.00026,10]
[385876065,1758081049675,-218.649692,0.00026,7]
[385876067,1758081049684,-218.649692,0.00026,7]
[385876070,1758081049693,-218.649692,0.00026,7]
[385876071,1758081049702,-204.534279,0.00026,7]
[385876073,1758081049712,-218.649692,0.00026,7]
[385876075,1758081049721,-150.0,0.00026007,2]
[385876077,1758081049730,-424.35604153,0.00026027,2]
[385876079,1758081049740,-151.0,0.00026027,7]
[385876081,1758081049748,-151.0,0.00026027,7]
[385876083,1758081049758,-151.0,0.00026027,7]
[385876085,1758081049767,-151.0,0.00026027,7]
[385876087,1758081049776,-151.0,0.00026027,7]
[385876088,1758081049785,-151.0,0.00026027,7]
[385876089,1758081049794,-151.0,0.00026027,7]
[385876090,1758081049805,-234.700355,0.00026027,7]
[385876091,1758081049815,-407.32049549,0.00026069,2]
[385876092,1758081049824,-500.0,0.00026069,2]
[385876093,1758081049833,-500.0,0.00026069,2]
[385876094,1758081049842,-500.0,0.00026069,2]
[385876095,1758081049851,-500.0,0.00026069,2]
[385876096,1758081049860,-500.0,0.00026069,2]
[385876097,1758081049869,-500.0,0.00026071,2]
[385876099,1758081049878,-500.0,0.00026108,2]
[385876101,1758081049890,-167.83,0.00026135,2]
[385876102,1758081049899,-756.0,0.00026136,2]
[385876104,1758081049908,-899.0,0.00026136,2]
[385876106,1758081049919,-405.90007015,0.00026136,2]
[385876109,1758081049928,-862.0,0.00026136,2]
[385876111,1758081049938,-500.0,0.00026136,2]
[385876112,1758081049947,-500.0,0.00026144,2]
[385876115,1758081049957,-1178.3103739,0.00026168,2]
[385876116,1758081049967,-1500.0,0.00026168,2]
[385876118,1758081049976,-500.0,0.00026178,2]
[385876120,1758081049985,-446.77823244,0.00026178,2]
[385876122,1758081049994,-500.0,0.00026193,5]
[385876125,1758081050004,-3292.0,0.00026194,2]
[385876127,1758081050013,-1799.21920692,0.00026212,2]
[385876129,1758081050023,-3000.0,0.00026212,2]
[385876131,1758081050032,-458.85179946,0.00026212,2]
[385876133,1758081050041,-150.0,0.00026246,2]
[385876135,1758081050051,-172.93,0.00026328,2]
[385876137,1758081050060,-382.28405052,0.00026328,2]
[385876139,1758081050069,-373.88145701,0.00026343,2]
[385876141,1758081050078,-371.15401675,0.00026343,2]
[385876143,1758081050087,-500.0,0.00026343,2]
[385876145,1758081050096,-500.0,0.00026343,2]
[385876147,1758081050106,-500.0,0.00026343,2]
[385876149,1758081050115,-500.0,0.00026345,2]
[385876151,1758081050124,-800.0,0.00026349,2]
[385876153,1758081050134,-500.0,0.00026382,2]
[385876155,1758081050143,-756.0,0.0002641,2]
[385876157,1758081050152,-899.0,0.0002641,2]
[385876158,1758081050162,-862.0,0.0002641,2]
[385876159,1758081050171,-500.0,0.0002641,2]
[385876160,1758081050180,-320.21587881,0.00026418,2]
[385876161,1758081050189,-500.0,0.00026452,2]
[385876162,1758081050199,-33490.39983579,0.000265,2]
[385876163,1758081050208,-1101.1138846,0.00026516,2]
[385876164,1758081050217,-1224.69408199,0.00026516,2]
[385876165,1758081050227,-450.0,0.00026516,2]
[385876166,1758081050236,-150.0,0.0002652,2]
[385876167,1758081050245,-250.0,0.00026555,2]
[385876168,1758081050255,-500.0,0.00026617,2]
[385876169,1758081050264,-500.0,0.00026617,2]
[385876170,1758081050274,-335.23390175,0.00026617,2]
[385876171,1758081050283,-500.0,0.00026619,2]